[Event "Titled Tuesday Blitz March 28 Late 2023"]
[White "Santos Flores, Alberto"]
[Black "Kornyukov, Alexey"]
[WhiteFideId "3601234"]
[BlackFideId "4150457"]
[WhiteElo "2235"]
[BlackElo "2352"]
[Result "0-1"]
[Round "10"]
[TimeControl "180+2"]
[Date "2023.03.28"]
[WhiteClock "0:01:50"]
[BlackClock "0:00:07"]

1. e4 {[%clk 0:02:33]}  c5 {[%clk 0:02:59]} 2. Nf3 {[%clk 0:02:33]}  Nc6 {[%clk 0:02:59]} 3. d4 {[%clk 0:02:32]}  cxd4 {[%clk 0:02:59]} 4. Nxd4 {[%clk 0:02:33]}  Nf6 {[%clk 0:02:59]} 5. Nc3 {[%clk 0:02:33]}  e5 {[%clk 0:02:58]} 6. Ndb5 {[%clk 0:02:33]}  d6 {[%clk 0:02:58]} 7. Bg5 {[%clk 0:02:33]}  a6 {[%clk 0:02:58]} 8. Na3 {[%clk 0:02:33]}  b5 {[%clk 0:02:58]} 9. Bxf6 {[%clk 0:02:33]}  gxf6 {[%clk 0:02:58]} 10. Nd5 {[%clk 0:02:34]}  f5 {[%clk 0:02:59]} 11. c3 {[%clk 0:02:34]}  Bg7 {[%clk 0:02:57]} 12. exf5 {[%clk 0:02:35]}  Bxf5 {[%clk 0:02:56]} 13. Nc2 {[%clk 0:02:35]}  O-O {[%clk 0:02:56]} 14. Nce3 {[%clk 0:02:36]}  Be6 {[%clk 0:02:29]} 15. Bd3 {[%clk 0:02:36]}  f5 {[%clk 0:02:25]} 16. O-O {[%clk 0:02:36]}  e4 {[%clk 0:02:15]} 17. Nf4 {[%clk 0:02:36]}  Bf7 {[%clk 0:02:09]} 18. Bc2 {[%clk 0:02:36]}  Qg5 {[%clk 0:02:01]} 19. Ned5 {[%clk 0:02:29]}  Kh8 {[%clk 0:01:10]} 20. a4 {[%clk 0:02:22]}  Be5 {[%clk 0:00:51]} 21. g3 {[%clk 0:02:21]}  Ne7 {[%clk 0:00:23]} 22. axb5 {[%clk 0:02:15]}  Nxd5 {[%clk 0:00:22]} 23. Nxd5 {[%clk 0:02:15]}  axb5 {[%clk 0:00:20]} 24. Qe2 {[%clk 0:02:07]}  Bxd5 {[%clk 0:00:16]} 25. Qxb5 {[%clk 0:02:07]}  Rxa1 {[%clk 0:00:15]} 26. Rxa1 {[%clk 0:02:06]}  Be6 {[%clk 0:00:15]} 27. Bb3 {[%clk 0:02:06]}  Bxb3 {[%clk 0:00:14]} 28. Qxb3 {[%clk 0:02:07]}  f4 {[%clk 0:00:14]} 29. Qd5 {[%clk 0:02:05]}  fxg3 {[%clk 0:00:14]} 30. hxg3 {[%clk 0:02:04]}  e3 {[%clk 0:00:14]} 31. fxe3 {[%clk 0:01:53]}  Qxg3+ {[%clk 0:00:11]} 32. Qg2 {[%clk 0:01:53]}  Qxe3+ {[%clk 0:00:11]} 33. Kh1 {[%clk 0:01:53]}  Qh6+ {[%clk 0:00:09]} 34. Kg1 {[%clk 0:01:53]}  Rg8 {[%clk 0:00:09]} 35. Ra8 {[%clk 0:01:52]}  Qc1+ {[%clk 0:00:07]} 36. Kf2 {[%clk 0:01:51]}  Qd2+ {[%clk 0:00:07]} 37. Kf1 {[%clk 0:01:50]}  Qxg2+ {[%clk 0:00:07]} 0-1


[Site "https://www.chess.com"]

[Event "Titled Tuesday Blitz March 28 Late 2023"]
[White "Golubev, Mikhail"]
[Black "Zavortink, Matt"]
[WhiteFideId "14100983"]
[BlackFideId "2034263"]
[WhiteElo "2374"]
[BlackElo "2369"]
[Result "1-0"]
[Round "10"]
[TimeControl "180+2"]
[Date "2023.03.28"]
[WhiteClock "0:00:03"]
[BlackClock "0:00:03"]

1. e4 {[%clk 0:03:00]}  e6 {[%clk 0:02:59]} 2. d4 {[%clk 0:02:59]}  d5 {[%clk 0:02:59]} 3. Nc3 {[%clk 0:03:00]}  Nf6 {[%clk 0:03:00]} 4. Bg5 {[%clk 0:02:59]}  dxe4 {[%clk 0:03:00]} 5. Nxe4 {[%clk 0:02:58]}  Be7 {[%clk 0:03:00]} 6. Nxf6+ {[%clk 0:02:58]}  Bxf6 {[%clk 0:03:00]} 7. Bxf6 {[%clk 0:02:58]}  Qxf6 {[%clk 0:03:01]} 8. Qd2 {[%clk 0:02:58]}  c5 {[%clk 0:02:57]} 9. Nf3 {[%clk 0:02:53]}  O-O {[%clk 0:02:52]} 10. O-O-O {[%clk 0:02:51]}  Rd8 {[%clk 0:02:41]} 11. Qc3 {[%clk 0:02:44]}  cxd4 {[%clk 0:02:34]} 12. Rxd4 {[%clk 0:02:41]}  Bd7 {[%clk 0:02:25]} 13. Qd2 {[%clk 0:02:22]}  Qe7 {[%clk 0:01:48]} 14. Bd3 {[%clk 0:01:59]}  Nc6 {[%clk 0:01:22]} 15. Rh4 {[%clk 0:01:23]}  h6 {[%clk 0:00:53]} 16. Re1 {[%clk 0:01:22]}  Be8 {[%clk 0:00:44]} 17. Rg4 {[%clk 0:01:10]}  Qf6 {[%clk 0:00:41]} 18. Rf4 {[%clk 0:01:05]}  Qe7 {[%clk 0:00:39]} 19. a3 {[%clk 0:00:41]}  Rac8 {[%clk 0:00:38]} 20. Qe3 {[%clk 0:00:39]}  a6 {[%clk 0:00:26]} 21. Qe4 {[%clk 0:00:38]}  g6 {[%clk 0:00:25]} 22. Rh4 {[%clk 0:00:37]}  Kg7 {[%clk 0:00:23]} 23. Qe3 {[%clk 0:00:28]}  g5 {[%clk 0:00:20]} 24. Rg4 {[%clk 0:00:23]}  f6 {[%clk 0:00:16]} 25. h4 {[%clk 0:00:22]}  Bg6 {[%clk 0:00:13]} 26. hxg5 {[%clk 0:00:19]}  hxg5 {[%clk 0:00:12]} 27. Nxg5 {[%clk 0:00:18]}  Ne5 {[%clk 0:00:08]} 28. Bxg6 {[%clk 0:00:15]}  Nxg6 {[%clk 0:00:09]} 29. Nxe6+ {[%clk 0:00:15]}  Kf7 {[%clk 0:00:09]} 30. Rxg6 {[%clk 0:00:14]}  Kxg6 {[%clk 0:00:07]} 31. Qg3+ {[%clk 0:00:14]}  Kf7 {[%clk 0:00:06]} 32. Qg7+ {[%clk 0:00:07]}  Ke8 {[%clk 0:00:06]} 33. Qg6+ {[%clk 0:00:06]}  Kd7 {[%clk 0:00:06]} 34. Rd1+ {[%clk 0:00:06]}  Kxe6 {[%clk 0:00:06]} 35. Re1+ {[%clk 0:00:06]}  Kd7 {[%clk 0:00:06]} 36. Qd3+ {[%clk 0:00:05]}  Ke8 {[%clk 0:00:06]} 37. Rxe7+ {[%clk 0:00:06]}  Kxe7 {[%clk 0:00:06]} 38. Qe4+ {[%clk 0:00:06]}  Kf7 {[%clk 0:00:05]} 39. Qxb7+ {[%clk 0:00:06]}  Kg6 {[%clk 0:00:05]} 40. c3 {[%clk 0:00:06]}  Ra8 {[%clk 0:00:03]} 41. Qe4+ {[%clk 0:00:05]}  f5 {[%clk 0:00:03]} 42. Qe6+ {[%clk 0:00:04]}  Kg5 {[%clk 0:00:04]} 43. Qe7+ {[%clk 0:00:04]}  Kg6 {[%clk 0:00:03]} 44. f4 {[%clk 0:00:04]}  Re8 {[%clk 0:00:03]} 45. Qg5+ {[%clk 0:00:04]}  Kf7 {[%clk 0:00:02]} 46. Qxf5+ {[%clk 0:00:05]}  Kg7 {[%clk 0:00:02]} 47. Qg5+ {[%clk 0:00:05]}  Kf7 {[%clk 0:00:03]} 48. g4 {[%clk 0:00:05]}  Rad8 {[%clk 0:00:02]} 49. Qf5+ {[%clk 0:00:04]}  Kg7 {[%clk 0:00:02]} 50. g5 {[%clk 0:00:03]}  Rf8 {[%clk 0:00:02]} 51. Qe5+ {[%clk 0:00:03]}  Kg6 {[%clk 0:00:02]} 52. Qe6+ {[%clk 0:00:03]}  Kh5 {[%clk 0:00:02]} 53. Qh6+ {[%clk 0:00:03]}  Kg4 {[%clk 0:00:03]} 54. g6 {[%clk 0:00:03]} 1-0


[Site "https://www.chess.com"]

[Event "Titled Tuesday Blitz March 28 Late 2023"]
[White "Nery Junior, Jose Antonio"]
[Black "Gonzalez, Francisco Silva"]
[WhiteFideId "2104822"]
[BlackFideId "1512285"]
[WhiteElo "2197"]
[BlackElo "2074"]
[Result "1-0"]
[Round "10"]
[TimeControl "180+2"]
[Date "2023.03.28"]
[WhiteClock "0:00:14"]
[BlackClock "0:00:15"]

1. e4 {[%clk 0:03:00]}  e5 {[%clk 0:02:54]} 2. Nf3 {[%clk 0:03:00]}  Nc6 {[%clk 0:02:55]} 3. Bc4 {[%clk 0:02:59]}  Bc5 {[%clk 0:02:52]} 4. b4 {[%clk 0:02:55]}  Bb6 {[%clk 0:02:51]} 5. c3 {[%clk 0:02:50]}  d6 {[%clk 0:02:49]} 6. d3 {[%clk 0:02:47]}  Nf6 {[%clk 0:02:49]} 7. Nbd2 {[%clk 0:02:46]}  a6 {[%clk 0:02:49]} 8. Bb3 {[%clk 0:02:46]}  Ba7 {[%clk 0:02:49]} 9. h3 {[%clk 0:02:46]}  Ne7 {[%clk 0:02:49]} 10. Nf1 {[%clk 0:02:45]}  Ng6 {[%clk 0:02:49]} 11. Ng3 {[%clk 0:02:46]}  h6 {[%clk 0:02:49]} 12. O-O {[%clk 0:02:39]}  O-O {[%clk 0:02:49]} 13. Nh2 {[%clk 0:02:34]}  Re8 {[%clk 0:02:48]} 14. Qf3 {[%clk 0:02:33]}  c6 {[%clk 0:02:42]} 15. Nf5 {[%clk 0:02:20]}  d5 {[%clk 0:02:38]} 16. Bxh6 {[%clk 0:01:32]}  gxh6 {[%clk 0:02:33]} 17. Nxh6+ {[%clk 0:01:28]}  Kg7 {[%clk 0:02:33]} 18. Nf5+ {[%clk 0:01:11]}  Bxf5 {[%clk 0:02:31]} 19. exf5 {[%clk 0:01:11]}  Nf4 {[%clk 0:02:27]} 20. d4 {[%clk 0:01:00]}  Qd6 {[%clk 0:02:12]} 21. dxe5 {[%clk 0:00:45]}  Qxe5 {[%clk 0:02:07]} 22. Rae1 {[%clk 0:00:29]}  Qxf5 {[%clk 0:02:06]} 23. Bc2 {[%clk 0:00:14]}  Qg5 {[%clk 0:02:02]} 24. Kh1 {[%clk 0:00:08]}  Re4 {[%clk 0:01:54]} 25. Bxe4 {[%clk 0:00:07]}  Nxe4 {[%clk 0:01:54]} 26. Ng4 {[%clk 0:00:08]}  f5 {[%clk 0:01:51]} 27. Ne3 {[%clk 0:00:08]}  Rf8 {[%clk 0:01:45]} 28. Rg1 {[%clk 0:00:07]}  Ng6 {[%clk 0:01:42]} 29. g3 {[%clk 0:00:06]}  Ne5 {[%clk 0:01:21]} 30. Qf4 {[%clk 0:00:06]}  Nf3 {[%clk 0:01:14]} 31. Qxf3 {[%clk 0:00:04]}  Kg6 {[%clk 0:01:10]} 32. Rg2 {[%clk 0:00:04]}  Rh8 {[%clk 0:01:08]} 33. g4 {[%clk 0:00:02]}  f4 {[%clk 0:01:05]} 34. Nf5 {[%clk 0:00:02]}  Bxf2 {[%clk 0:00:57]} 35. Rxe4 {[%clk 0:00:02]}  dxe4 {[%clk 0:00:54]} 36. Qxf2 {[%clk 0:00:02]}  Rxh3+ {[%clk 0:00:53]} 37. Kg1 {[%clk 0:00:02]}  f3 {[%clk 0:00:52]} 38. Rg3 {[%clk 0:00:02]}  Qc1+ {[%clk 0:00:51]} 39. Qf1 {[%clk 0:00:02]}  Rh1+ {[%clk 0:00:52]} 40. Kxh1 {[%clk 0:00:02]}  Qxf1+ {[%clk 0:00:52]} 41. Kh2 {[%clk 0:00:03]}  f2 {[%clk 0:00:47]} 42. Ne3 {[%clk 0:00:02]}  Qe1 {[%clk 0:00:42]} 43. Kg2 {[%clk 0:00:03]}  Qe2 {[%clk 0:00:36]} 44. Nf1 {[%clk 0:00:03]}  Kg5 {[%clk 0:00:35]} 45. Re3 {[%clk 0:00:03]}  Qxg4+ {[%clk 0:00:27]} 46. Rg3 {[%clk 0:00:04]}  Kf4 {[%clk 0:00:19]} 47. Rxg4+ {[%clk 0:00:04]}  Kxg4 {[%clk 0:00:19]} 48. Kxf2 {[%clk 0:00:05]}  Kf4 {[%clk 0:00:19]} 49. Ke2 {[%clk 0:00:06]}  b6 {[%clk 0:00:19]} 50. Ne3 {[%clk 0:00:06]}  Ke5 {[%clk 0:00:17]} 51. Nc4+ {[%clk 0:00:07]}  Kd5 {[%clk 0:00:18]} 52. Nxb6+ {[%clk 0:00:08]}  Ke5 {[%clk 0:00:17]} 53. Ke3 {[%clk 0:00:08]}  c5 {[%clk 0:00:17]} 54. Nc4+ {[%clk 0:00:08]}  Kd5 {[%clk 0:00:17]} 55. Nd2 {[%clk 0:00:09]}  cxb4 {[%clk 0:00:17]} 56. cxb4 {[%clk 0:00:10]}  Kc6 {[%clk 0:00:16]} 57. a4 {[%clk 0:00:10]}  a5 {[%clk 0:00:15]} 58. b5+ {[%clk 0:00:10]}  Kc5 {[%clk 0:00:16]} 59. Nxe4+ {[%clk 0:00:10]}  Kb4 {[%clk 0:00:13]} 60. Kd4 {[%clk 0:00:11]}  Kxa4 {[%clk 0:00:14]} 61. b6 {[%clk 0:00:12]}  Ka3 {[%clk 0:00:14]} 62. b7 {[%clk 0:00:12]}  Ka2 {[%clk 0:00:15]} 63. b8=Q {[%clk 0:00:13]}  a4 {[%clk 0:00:15]} 64. Kc3 {[%clk 0:00:14]}  a3 {[%clk 0:00:15]} 65. Kc2 {[%clk 0:00:14]} 1-0


[Site "https://www.chess.com"]

[Event "Titled Tuesday Blitz March 28 Late 2023"]
[White "Wang, Alexander J"]
[Black "Krstulovic, Alex"]
[WhiteFideId "30955270"]
[BlackFideId "760056"]
[WhiteElo "2307"]
[BlackElo "2311"]
[Result "0-1"]
[Round "10"]
[TimeControl "180+2"]
[Date "2023.03.28"]
[WhiteClock "0:00:45"]
[BlackClock "0:02:02"]

1. e4 {[%clk 0:03:00]}  c5 {[%clk 0:03:00]} 2. Nf3 {[%clk 0:02:58]}  e6 {[%clk 0:03:00]} 3. d4 {[%clk 0:02:59]}  cxd4 {[%clk 0:03:00]} 4. Nxd4 {[%clk 0:03:00]}  Nf6 {[%clk 0:03:00]} 5. Nc3 {[%clk 0:02:59]}  Nc6 {[%clk 0:03:01]} 6. g3 {[%clk 0:02:59]}  Qb6 {[%clk 0:02:55]} 7. Nxc6 {[%clk 0:02:50]}  bxc6 {[%clk 0:02:55]} 8. Bg2 {[%clk 0:02:49]}  Ba6 {[%clk 0:02:52]} 9. Ne2 {[%clk 0:02:35]}  Bc5 {[%clk 0:02:50]} 10. O-O {[%clk 0:02:34]}  Ng4 {[%clk 0:02:50]} 11. b4 {[%clk 0:02:12]}  Bxf2+ {[%clk 0:02:25]} 12. Kh1 {[%clk 0:02:11]}  Be3 {[%clk 0:02:17]} 13. Bxe3 {[%clk 0:01:26]}  Nxe3 {[%clk 0:02:15]} 14. Qd2 {[%clk 0:01:18]}  Nxf1 {[%clk 0:02:12]} 15. Rxf1 {[%clk 0:01:19]}  Bxe2 {[%clk 0:02:08]} 16. Qxe2 {[%clk 0:01:18]}  Qxb4 {[%clk 0:02:09]} 17. Qf2 {[%clk 0:01:15]}  O-O {[%clk 0:02:07]} 18. Qf4 {[%clk 0:01:09]}  f5 {[%clk 0:02:06]} 19. Qe3 {[%clk 0:01:03]}  fxe4 {[%clk 0:02:05]} 20. Rxf8+ {[%clk 0:01:01]}  Rxf8 {[%clk 0:02:06]} 21. h4 {[%clk 0:01:00]}  d5 {[%clk 0:02:05]} 22. Qxa7 {[%clk 0:00:59]}  Qe1+ {[%clk 0:01:59]} 23. Kh2 {[%clk 0:00:58]}  Qf2 {[%clk 0:01:59]} 24. Qd7 {[%clk 0:00:55]}  e3 {[%clk 0:01:59]} 25. Qxe6+ {[%clk 0:00:55]}  Kh8 {[%clk 0:02:00]} 26. Qxc6 {[%clk 0:00:49]}  e2 {[%clk 0:02:00]} 27. Qxd5 {[%clk 0:00:49]}  e1=Q {[%clk 0:02:01]} 28. Qd6 {[%clk 0:00:47]}  Qeg1+ {[%clk 0:01:59]} 29. Kh3 {[%clk 0:00:46]}  Qgxg2+ {[%clk 0:02:00]} 30. Kg4 {[%clk 0:00:46]}  Qff3+ {[%clk 0:02:01]} 31. Kg5 {[%clk 0:00:45]}  Qf5# {[%clk 0:02:02]} 0-1


[Site "https://www.chess.com"]

[Event "Titled Tuesday Blitz March 28 Late 2023"]
[White "Fernandez, Maria Florencia"]
[Black "Sarkar, Justin"]
[WhiteFideId "116459"]
[BlackFideId "2010011"]
[WhiteElo "2155"]
[BlackElo "2189"]
[Result "0-1"]
[Round "10"]
[TimeControl "180+2"]
[Date "2023.03.28"]
[WhiteClock "0:00:04"]
[BlackClock "0:00:04"]

1. d4 {[%clk 0:03:00]}  Nf6 {[%clk 0:02:53]} 2. c4 {[%clk 0:02:58]}  e6 {[%clk 0:02:53]} 3. Nc3 {[%clk 0:02:57]}  Bb4 {[%clk 0:02:52]} 4. a3 {[%clk 0:02:58]}  Bxc3+ {[%clk 0:02:50]} 5. bxc3 {[%clk 0:02:58]}  Ne4 {[%clk 0:02:50]} 6. f3 {[%clk 0:02:55]}  Qh4+ {[%clk 0:02:30]} 7. g3 {[%clk 0:02:54]}  Nxg3 {[%clk 0:02:30]} 8. hxg3 {[%clk 0:02:47]}  Qxh1 {[%clk 0:02:30]} 9. Kf2 {[%clk 0:02:47]}  Qh5 {[%clk 0:02:26]} 10. e4 {[%clk 0:02:43]}  d6 {[%clk 0:02:19]} 11. Bg2 {[%clk 0:02:43]}  Qa5 {[%clk 0:02:15]} 12. Ne2 {[%clk 0:02:43]}  e5 {[%clk 0:02:09]} 13. Be3 {[%clk 0:02:39]}  Nd7 {[%clk 0:02:01]} 14. f4 {[%clk 0:02:34]}  Nf6 {[%clk 0:01:56]} 15. Kg1 {[%clk 0:02:20]}  Ng4 {[%clk 0:01:48]} 16. Bd2 {[%clk 0:02:20]}  h5 {[%clk 0:01:41]} 17. f5 {[%clk 0:02:15]}  h4 {[%clk 0:01:33]} 18. gxh4 {[%clk 0:02:15]}  Rxh4 {[%clk 0:01:32]} 19. Qe1 {[%clk 0:02:13]}  Rh7 {[%clk 0:01:24]} 20. Qg3 {[%clk 0:02:13]}  Nf6 {[%clk 0:01:23]} 21. c5 {[%clk 0:01:56]}  Bd7 {[%clk 0:01:16]} 22. cxd6 {[%clk 0:01:36]}  cxd6 {[%clk 0:01:14]} 23. Be1 {[%clk 0:01:27]}  O-O-O {[%clk 0:01:06]} 24. c4 {[%clk 0:01:23]}  Qc7 {[%clk 0:01:06]} 25. c5 {[%clk 0:01:15]}  Nh5 {[%clk 0:00:56]} 26. Qb3 {[%clk 0:01:08]}  dxc5 {[%clk 0:00:49]} 27. dxc5 {[%clk 0:01:07]}  f6 {[%clk 0:00:31]} 28. Bf2 {[%clk 0:01:02]}  Bc6 {[%clk 0:00:29]} 29. a4 {[%clk 0:00:59]}  Nf4 {[%clk 0:00:26]} 30. Nxf4 {[%clk 0:00:51]}  exf4 {[%clk 0:00:26]} 31. a5 {[%clk 0:00:41]}  a6 {[%clk 0:00:26]} 32. Rb1 {[%clk 0:00:31]}  Qxa5 {[%clk 0:00:21]} 33. Qe6+ {[%clk 0:00:29]}  Bd7 {[%clk 0:00:11]} 34. Qf7 {[%clk 0:00:17]}  Re8 {[%clk 0:00:11]} 35. Qg6 {[%clk 0:00:16]}  Rhh8 {[%clk 0:00:07]} 36. Qf7 {[%clk 0:00:15]}  Bc6 {[%clk 0:00:06]} 37. Rd1 {[%clk 0:00:06]}  Qc7 {[%clk 0:00:05]} 38. Qc4 {[%clk 0:00:05]}  Rd8 {[%clk 0:00:05]} 39. Rc1 {[%clk 0:00:04]}  Rhe8 {[%clk 0:00:04]} 40. Bf3 {[%clk 0:00:03]}  Qe5 {[%clk 0:00:04]} 41. Rb1 {[%clk 0:00:03]}  Bxe4 {[%clk 0:00:04]} 42. Bxe4 {[%clk 0:00:02]}  Qxe4 {[%clk 0:00:04]} 43. Qb3 {[%clk 0:00:02]}  Qd5 {[%clk 0:00:03]} 44. c6 {[%clk 0:00:02]}  Qxb3 {[%clk 0:00:03]} 45. Rxb3 {[%clk 0:00:03]}  bxc6 {[%clk 0:00:03]} 46. Rb6 {[%clk 0:00:03]}  Rd1+ {[%clk 0:00:03]} 47. Kg2 {[%clk 0:00:03]}  Kc7 {[%clk 0:00:03]} 48. Rxa6 {[%clk 0:00:03]}  Re2 {[%clk 0:00:03]} 49. Kf3 {[%clk 0:00:04]}  Rdd2 {[%clk 0:00:03]} 50. Ra7+ {[%clk 0:00:03]}  Kb8 {[%clk 0:00:03]} 51. Bc5 {[%clk 0:00:04]}  Rc2 {[%clk 0:00:03]} 52. Ra5 {[%clk 0:00:04]}  Red2 {[%clk 0:00:03]} 53. Kxf4 {[%clk 0:00:04]}  Rc4+ {[%clk 0:00:03]} 54. Ke3 {[%clk 0:00:04]}  Rd5 {[%clk 0:00:03]} 55. Ba7+ {[%clk 0:00:02]}  Kb7 {[%clk 0:00:04]} 56. Ra3 {[%clk 0:00:02]}  Rxf5 {[%clk 0:00:04]} 57. Bd4 {[%clk 0:00:02]}  Rb5 {[%clk 0:00:04]} 58. Ra7+ {[%clk 0:00:01]}  Kb8 {[%clk 0:00:03]} 59. Rxg7 {[%clk 0:00:02]}  Rb3+ {[%clk 0:00:04]} 60. Ke4 {[%clk 0:00:02]}  Rbb4 {[%clk 0:00:04]} 61. Rd7 {[%clk 0:00:02]}  c5 {[%clk 0:00:04]} 62. Kf5 {[%clk 0:00:01]}  Rxd4 {[%clk 0:00:04]} 63. Rf7 {[%clk 0:00:02]}  c4 {[%clk 0:00:04]} 64. Kxf6 {[%clk 0:00:02]}  c3 {[%clk 0:00:04]} 65. Ke5 {[%clk 0:00:02]}  Rdc4 {[%clk 0:00:04]} 66. Rf8+ {[%clk 0:00:03]}  Rc8 {[%clk 0:00:04]} 67. Kd5 {[%clk 0:00:04]}  c2 {[%clk 0:00:04]} 68. Rf1 {[%clk 0:00:04]}  c1=Q {[%clk 0:00:04]} 69. Rf5 {[%clk 0:00:04]}  Rc5+ {[%clk 0:00:03]} 70. Kd6 {[%clk 0:00:03]}  Rxf5 {[%clk 0:00:04]} 71. Ke6 {[%clk 0:00:04]}  Qc6+ {[%clk 0:00:04]} 72. Ke7 {[%clk 0:00:04]}  Qc7+ {[%clk 0:00:04]} 73. Ke6 {[%clk 0:00:04]}  Qf7+ {[%clk 0:00:04]} 74. Kd6 {[%clk 0:00:04]}  Rd5+ {[%clk 0:00:04]} 75. Kc6 {[%clk 0:00:04]}  Qd7# {[%clk 0:00:04]} 0-1


[Site "https://www.chess.com"]

[Event "Titled Tuesday Blitz March 28 Late 2023"]
[White "Araujo, Everson De Moura"]
[Black "Lorenzo De La Riva, Lazaro"]
[WhiteFideId "22737197"]
[BlackFideId "2268809"]
[WhiteElo "2035"]
[BlackElo "2294"]
[Result "0-1"]
[Round "10"]
[TimeControl "180+2"]
[Date "2023.03.28"]
[WhiteClock "0:00:25"]
[BlackClock "0:01:38"]

1. c4 {[%clk 0:03:00]}  b6 {[%clk 0:02:54]} 2. Nc3 {[%clk 0:02:56]}  Bb7 {[%clk 0:02:55]} 3. d4 {[%clk 0:02:56]}  f5 {[%clk 0:02:54]} 4. Qc2 {[%clk 0:02:53]}  g6 {[%clk 0:02:53]} 5. Bf4 {[%clk 0:02:38]}  Bg7 {[%clk 0:02:52]} 6. O-O-O {[%clk 0:02:37]}  Nf6 {[%clk 0:02:48]} 7. f3 {[%clk 0:02:34]}  Nc6 {[%clk 0:02:47]} 8. e4 {[%clk 0:02:33]}  fxe4 {[%clk 0:02:45]} 9. fxe4 {[%clk 0:02:34]}  O-O {[%clk 0:02:45]} 10. a3 {[%clk 0:02:16]}  Ng4 {[%clk 0:02:35]} 11. Nd5 {[%clk 0:01:12]}  Nxd4 {[%clk 0:02:24]} 12. Rxd4 {[%clk 0:01:05]}  Bxd4 {[%clk 0:02:23]} 13. Bxc7 {[%clk 0:01:03]}  Qe8 {[%clk 0:02:23]} 14. Bg3 {[%clk 0:01:01]}  Rxf1+ {[%clk 0:02:21]} 15. Kd2 {[%clk 0:01:00]}  Rxg1 {[%clk 0:02:11]} 16. Rxg1 {[%clk 0:00:59]}  Bxg1 {[%clk 0:02:09]} 17. Nc7 {[%clk 0:00:52]}  Qf7 {[%clk 0:02:02]} 18. Nxa8 {[%clk 0:00:50]}  Qf1 {[%clk 0:02:01]} 19. Nc7 {[%clk 0:00:43]}  Qxg2+ {[%clk 0:01:58]} 20. Kc3 {[%clk 0:00:41]}  Qxe4 {[%clk 0:01:49]} 21. Qd1 {[%clk 0:00:30]}  Qe3+ {[%clk 0:01:44]} 22. Kb4 {[%clk 0:00:25]}  a5+ {[%clk 0:01:38]} 0-1


[Site "https://www.chess.com"]

[Event "Titled Tuesday Blitz March 28 Late 2023"]
[White "Nikolova, Adriana"]
[Black "Khatena, Moshe"]
[WhiteFideId "2908689"]
[BlackFideId "2010461"]
[WhiteElo "2213"]
[BlackElo "2174"]
[Result "1-0"]
[Round "10"]
[TimeControl "180+2"]
[Date "2023.03.28"]
[WhiteClock "0:00:16"]
[BlackClock "0:00:01"]

1. d4 {[%clk 0:03:00]}  b5 {[%clk 0:02:55]} 2. Bf4 {[%clk 0:02:59]}  Bb7 {[%clk 0:02:55]} 3. e3 {[%clk 0:02:59]}  a6 {[%clk 0:02:54]} 4. Nf3 {[%clk 0:03:00]}  d6 {[%clk 0:02:54]} 5. Bd3 {[%clk 0:03:00]}  Nf6 {[%clk 0:02:54]} 6. O-O {[%clk 0:03:00]}  Nbd7 {[%clk 0:02:54]} 7. c4 {[%clk 0:02:55]}  c6 {[%clk 0:02:53]} 8. a4 {[%clk 0:02:54]}  g6 {[%clk 0:02:38]} 9. axb5 {[%clk 0:02:53]}  axb5 {[%clk 0:02:38]} 10. Rxa8 {[%clk 0:02:54]}  Qxa8 {[%clk 0:02:37]} 11. cxb5 {[%clk 0:02:52]}  Bg7 {[%clk 0:02:34]} 12. bxc6 {[%clk 0:02:52]}  Bxc6 {[%clk 0:02:34]} 13. Nc3 {[%clk 0:02:45]}  O-O {[%clk 0:02:29]} 14. Bg5 {[%clk 0:02:41]}  Rb8 {[%clk 0:02:28]} 15. Qc2 {[%clk 0:02:38]}  Qb7 {[%clk 0:02:28]} 16. d5 {[%clk 0:02:29]}  Nxd5 {[%clk 0:02:20]} 17. Nxd5 {[%clk 0:02:28]}  Bxd5 {[%clk 0:02:21]} 18. e4 {[%clk 0:02:27]}  Bb3 {[%clk 0:02:14]} 19. Qe2 {[%clk 0:02:27]}  Nc5 {[%clk 0:02:02]} 20. Bb1 {[%clk 0:02:17]}  Ne6 {[%clk 0:01:54]} 21. Bh4 {[%clk 0:02:11]}  Qb4 {[%clk 0:01:53]} 22. Bxe7 {[%clk 0:02:04]}  Re8 {[%clk 0:01:45]} 23. Bg5 {[%clk 0:01:51]}  Nc5 {[%clk 0:01:43]} 24. Bd2 {[%clk 0:01:39]}  Qa4 {[%clk 0:01:28]} 25. Re1 {[%clk 0:01:24]}  Bxb2 {[%clk 0:01:24]} 26. h4 {[%clk 0:01:09]}  Bg7 {[%clk 0:01:19]} 27. h5 {[%clk 0:01:06]}  Bc4 {[%clk 0:01:04]} 28. Qe3 {[%clk 0:01:06]}  Nb3 {[%clk 0:00:49]} 29. Bc3 {[%clk 0:01:02]}  Qc6 {[%clk 0:00:40]} 30. Bxg7 {[%clk 0:00:56]}  Kxg7 {[%clk 0:00:41]} 31. h6+ {[%clk 0:00:57]}  Kg8 {[%clk 0:00:41]} 32. Qc3 {[%clk 0:00:54]}  f6 {[%clk 0:00:29]} 33. Qxf6 {[%clk 0:00:53]}  Qd7 {[%clk 0:00:26]} 34. Qc3 {[%clk 0:00:33]}  Be6 {[%clk 0:00:20]} 35. e5 {[%clk 0:00:29]}  Rc8 {[%clk 0:00:12]} 36. Qe3 {[%clk 0:00:24]}  Nc5 {[%clk 0:00:10]} 37. exd6 {[%clk 0:00:23]}  Qxd6 {[%clk 0:00:10]} 38. Ng5 {[%clk 0:00:21]}  Rf8 {[%clk 0:00:04]} 39. Nxe6 {[%clk 0:00:20]}  Nxe6 {[%clk 0:00:02]} 40. Ba2 {[%clk 0:00:18]}  Rf6 {[%clk 0:00:01]} 41. Bxe6+ {[%clk 0:00:17]}  Kf8 {[%clk 0:00:01]} 42. Bb3 {[%clk 0:00:16]} 1-0


[Site "https://www.chess.com"]